[Event "Early-Titled-Tuesday-Blitz-October-24-2023"]
[Site "Chess.com"]
[Date "2023.10.24"]
[Round "7"]
[White "OhanyanEminChess"]
[Black "shimastream"]
[Result "1-0"]
[WhiteElo "2841"]
[BlackElo "2974"]
[TimeControl "180+1"]
[EndTime "9:16:00 PDT"]
[Termination "OhanyanEminChess won on time"]

1. d4 {[%clk 0:03:00.9]} 1... d5 {[%clk 0:02:57]} 2. c4 {[%clk 0:03:01.2]} 2...
dxc4 {[%clk 0:02:57.5]} 3. e3 {[%clk 0:02:57.5]} 3... a6 {[%clk 0:02:53.9]} 4.
Bxc4 {[%clk 0:02:56.3]} 4... e6 {[%clk 0:02:54]} 5. Ne2 {[%clk 0:02:52.8]} 5...
Nf6 {[%clk 0:02:48.1]} 6. O-O {[%clk 0:02:52.6]} 6... b6 {[%clk 0:02:43.6]} 7.
Nbc3 {[%clk 0:02:51.4]} 7... Bb7 {[%clk 0:02:44]} 8. Ng3 {[%clk 0:02:51.7]} 8...
Nbd7 {[%clk 0:02:41]} 9. e4 {[%clk 0:02:51.3]} 9... b5 {[%clk 0:02:41.2]} 10.
Bd3 {[%clk 0:02:50.6]} 10... c5 {[%clk 0:02:41]} 11. e5 {[%clk 0:01:59.1]} 11...
Nd5 {[%clk 0:02:40.4]} 12. Be4 {[%clk 0:01:44.5]} 12... N7b6 {[%clk 0:02:34.3]}
13. dxc5 {[%clk 0:01:40.7]} 13... Bxc5 {[%clk 0:02:33.6]} 14. Qg4 {[%clk
0:01:41.4]} 14... g6 {[%clk 0:02:29.2]} 15. Bg5 {[%clk 0:01:40.9]} 15... h5
{[%clk 0:01:55.2]} 16. Qh4 {[%clk 0:01:20.9]} 16... Be7 {[%clk 0:01:54.6]} 17.
f4 {[%clk 0:00:59.2]} 17... Bxg5 {[%clk 0:01:35]} 18. fxg5 {[%clk 0:00:58.5]}
18... Qc7 {[%clk 0:01:29.4]} 19. Bxd5 {[%clk 0:00:25.9]} 19... Nxd5 {[%clk
0:01:27.6]} 20. Nge4 {[%clk 0:00:23.5]} 20... Nxc3 {[%clk 0:01:22.1]} 21. Nd6+
{[%clk 0:00:19.7]} 21... Kd8 {[%clk 0:01:20.6]} 22. bxc3 {[%clk 0:00:11.1]}
22... Rf8 {[%clk 0:01:12.6]} 23. Rad1 {[%clk 0:00:10.3]} 23... Bd5 {[%clk
0:01:12.7]} 24. Qb4 {[%clk 0:00:04.5]} 24... Rb8 {[%clk 0:00:59.7]} 25. Ne4
{[%clk 0:00:02.1]} 25... Qe7 {[%clk 0:00:54.8]} 26. Nf6 {[%clk 0:00:01.5]} 26...
Qxb4 {[%clk 0:00:53.6]} 27. cxb4 {[%clk 0:00:02.4]} 27... Ke7 {[%clk 0:00:53.1]}
28. Nxd5+ {[%clk 0:00:02.5]} 28... exd5 {[%clk 0:00:54]} 29. Rxd5 {[%clk
0:00:03.1]} 29... Rfd8 {[%clk 0:00:53.6]} 30. Rc5 {[%clk 0:00:03]} 30... Rb7
{[%clk 0:00:38.1]} 31. h3 {[%clk 0:00:03]} 31... Rd4 {[%clk 0:00:31.7]} 32. Rf6
{[%clk 0:00:02.2]} 32... Rxb4 {[%clk 0:00:26]} 33. e6 {[%clk 0:00:02.3]} 33...
fxe6 {[%clk 0:00:25.1]} 34. Rxg6 {[%clk 0:00:02.9]} 34... Kd6 {[%clk 0:00:25.4]}
35. Rc3 {[%clk 0:00:02.6]} 35... Re7 {[%clk 0:00:18.3]} 36. Rg8 {[%clk
0:00:02.9]} 36... e5 {[%clk 0:00:16.8]} 37. g6 {[%clk 0:00:03.6]} 37... Ke6
{[%clk 0:00:15.8]} 38. Rc6+ {[%clk 0:00:03.9]} 38... Kf5 {[%clk 0:00:14.2]} 39.
g7 {[%clk 0:00:03.8]} 39... Kg5 {[%clk 0:00:14.7]} 40. Rxa6 {[%clk 0:00:02.5]}
40... e4 {[%clk 0:00:11.6]} 41. h4+ {[%clk 0:00:02.3]} 41... Kxh4 {[%clk
0:00:10.9]} 42. Rg6 {[%clk 0:00:02.8]} 42... e3 {[%clk 0:00:07.7]} 43. Kh2
{[%clk 0:00:03]} 43... Rg4 {[%clk 0:00:07.7]} 44. g3+ {[%clk 0:00:02.4]} 44...
Rxg3 {[%clk 0:00:07.9]} 45. Rxg3 {[%clk 0:00:03.3]} 45... e2 {[%clk 0:00:08.4]}
46. Rf8 {[%clk 0:00:02.7]} 46... Rxg7 {[%clk 0:00:02.1]} 47. Rf4+ {[%clk
0:00:02.4]} 47... Rg4 {[%clk 0:00:01.8]} 48. Rfxg4+ {[%clk 0:00:03]} 48... hxg4
{[%clk 0:00:02.7]} 49. Re3 {[%clk 0:00:03.5]} 49... Kg5 {[%clk 0:00:03.2]} 50.
Rxe2 {[%clk 0:00:03.7]} 50... Kf4 {[%clk 0:00:04.1]} 51. Rb2 {[%clk 0:00:04.6]}
51... Ke3 {[%clk 0:00:03.9]} 52. Kg2 {[%clk 0:00:05.5]} 52... Kd3 {[%clk
0:00:04.8]} 53. Rxb5 {[%clk 0:00:06.3]} 53... Kc3 {[%clk 0:00:05.7]} 54. a4
{[%clk 0:00:07.2]} 1-0

[Event "Early-Titled-Tuesday-Blitz-October-24-2023"]
[Site "Chess.com"]
[Date "2023.10.24"]
[Round "7"]
[White "AvitalBor"]
[Black "nihalsarin"]
[Result "1/2-1/2"]
[WhiteElo "2858"]
[BlackElo "3118"]
[TimeControl "180+1"]
[EndTime "9:16:03 PDT"]
[Termination "Game drawn - insufficient material"]

1. e4 {[%clk 0:03:00.9]} 1... a6 {[%clk 0:03:00.9]} 2. d4 {[%clk 0:03:00.3]}
2... e6 {[%clk 0:03:01]} 3. Bd3 {[%clk 0:03:00.1]} 3... d5 {[%clk 0:03:01.4]} 4.
e5 {[%clk 0:02:58.4]} 4... c5 {[%clk 0:03:01.5]} 5. c3 {[%clk 0:02:58.5]} 5...
Bd7 {[%clk 0:03:02.2]} 6. Ne2 {[%clk 0:02:52.9]} 6... Bb5 {[%clk 0:02:59.2]} 7.
O-O {[%clk 0:02:49.8]} 7... Nc6 {[%clk 0:02:58.6]} 8. Bxb5 {[%clk 0:02:43.2]}
8... axb5 {[%clk 0:02:59.5]} 9. Na3 {[%clk 0:02:43.6]} 9... b4 {[%clk
0:02:55.1]} 10. cxb4 {[%clk 0:02:43.4]} 10... cxb4 {[%clk 0:02:50.6]} 11. Nb5
{[%clk 0:02:41.4]} 11... Ra5 {[%clk 0:02:32.1]} 12. Qd3 {[%clk 0:02:31]} 12...
Qb6 {[%clk 0:02:31.8]} 13. a4 {[%clk 0:02:19.4]} 13... bxa3 {[%clk 0:02:32.7]}
14. Nxa3 {[%clk 0:02:19.5]} 14... Bxa3 {[%clk 0:02:25.1]} 15. Rxa3 {[%clk
0:01:53.9]} 15... Rxa3 {[%clk 0:02:16.2]} 16. Qxa3 {[%clk 0:01:53.9]} 16... Nge7
{[%clk 0:02:17.1]} 17. Bg5 {[%clk 0:01:48.9]} 17... Ng6 {[%clk 0:02:05.4]} 18.
Ra1 {[%clk 0:01:01.3]} 18... Qa6 {[%clk 0:01:26.1]} 19. Qxa6 {[%clk 0:00:56.2]}
19... bxa6 {[%clk 0:01:27]} 20. Rxa6 {[%clk 0:00:56.5]} 20... Kd7 {[%clk
0:01:27.8]} 21. Bd2 {[%clk 0:00:50.6]} 21... Rb8 {[%clk 0:01:24.7]} 22. Bc3
{[%clk 0:00:50.3]} 22... Nge7 {[%clk 0:01:25.2]} 23. g4 {[%clk 0:00:49.6]} 23...
h5 {[%clk 0:01:24.2]} 24. h3 {[%clk 0:00:49.1]} 24... hxg4 {[%clk 0:01:24.1]}
25. hxg4 {[%clk 0:00:50]} 25... Kc7 {[%clk 0:01:22.2]} 26. Kg2 {[%clk
0:00:49.2]} 26... Ng6 {[%clk 0:01:20.6]} 27. Kg3 {[%clk 0:00:46.5]} 27... Kb7
{[%clk 0:01:20.6]} 28. Ra1 {[%clk 0:00:45.9]} 28... Na7 {[%clk 0:01:18.2]} 29.
Bb4 {[%clk 0:00:41.6]} 29... Nb5 {[%clk 0:01:10.2]} 30. Bc5 {[%clk 0:00:38.7]}
30... Nf8 {[%clk 0:01:09.7]} 31. Nc3 {[%clk 0:00:34]} 31... Nxc3 {[%clk
0:01:01.9]} 32. bxc3 {[%clk 0:00:30.5]} 32... Nd7 {[%clk 0:01:02.8]} 33. Ra7+
{[%clk 0:00:29.2]} 33... Kc8 {[%clk 0:00:42.1]} 34. Bd6 {[%clk 0:00:28.6]} 34...
Rb3 {[%clk 0:00:41.1]} 35. Bb4 {[%clk 0:00:22.1]} 35... Rb1 {[%clk 0:00:35.5]}
36. Ra8+ {[%clk 0:00:22.1]} 36... Kc7 {[%clk 0:00:35.8]} 37. Rg8 {[%clk
0:00:21.7]} 37... Rg1+ {[%clk 0:00:34.8]} 38. Kf3 {[%clk 0:00:19.8]} 38... f6
{[%clk 0:00:26.5]} 39. Rxg7 {[%clk 0:00:18.2]} 39... fxe5 {[%clk 0:00:27.2]} 40.
dxe5 {[%clk 0:00:18.2]} 40... Kc6 {[%clk 0:00:28.1]} 41. Kf4 {[%clk 0:00:18]}
41... Re1 {[%clk 0:00:27.6]} 42. f3 {[%clk 0:00:17.2]} 42... Nxe5 {[%clk
0:00:26.5]} 43. g5 {[%clk 0:00:16.6]} 43... Nd3+ {[%clk 0:00:27.1]} 44. Kg4
{[%clk 0:00:16.7]} 44... Rg1+ {[%clk 0:00:27.5]} 45. Kh5 {[%clk 0:00:09.3]}
45... Nf4+ {[%clk 0:00:27.5]} 46. Kh4 {[%clk 0:00:09.7]} 46... e5 {[%clk
0:00:25.5]} 47. Rg8 {[%clk 0:00:08.9]} 47... Kb5 {[%clk 0:00:17.5]} 48. Rc8
{[%clk 0:00:07.3]} 48... Ne6 {[%clk 0:00:11.7]} 49. Be7 {[%clk 0:00:05.1]} 49...
Nf4 {[%clk 0:00:12.2]} 50. Bf6 {[%clk 0:00:05]} 50... e4 {[%clk 0:00:12.9]} 51.
fxe4 {[%clk 0:00:04.8]} 51... dxe4 {[%clk 0:00:13.8]} 52. Re8 {[%clk 0:00:05.2]}
52... e3 {[%clk 0:00:14]} 53. Be5 {[%clk 0:00:05.1]} 53... Nd3 {[%clk
0:00:06.7]} 54. Bd4 {[%clk 0:00:04.9]} 54... Rh1+ {[%clk 0:00:06.9]} 55. Kg4
{[%clk 0:00:04.9]} 55... Rg1+ {[%clk 0:00:07.6]} 56. Kf3 {[%clk 0:00:04.5]}
56... Rxg5 {[%clk 0:00:06.9]} 57. Kxe3 {[%clk 0:00:04.4]} 57... Nb2 {[%clk
0:00:05.9]} 58. Re5+ {[%clk 0:00:04.3]} 58... Rxe5+ {[%clk 0:00:05.9]} 59. Bxe5
{[%clk 0:00:05.2]} 59... Nc4+ {[%clk 0:00:06.4]} 60. Kd4 {[%clk 0:00:05.4]}
60... Nxe5 {[%clk 0:00:07.3]} 61. Kxe5 {[%clk 0:00:06.3]} 61... Kc4 {[%clk
0:00:08.2]} 62. Ke4 {[%clk 0:00:06.6]} 62... Kxc3 {[%clk 0:00:09.1]} 1/2-1/2

[Event "Early-Titled-Tuesday-Blitz-October-24-2023"]
[Site "Chess.com"]
[Date "2023.10.24"]
[Round "7"]
[White "karinachess1"]
[Black "hansen"]
[Result "0-1"]
[WhiteElo "2632"]
[BlackElo "2935"]
[TimeControl "180+1"]
[EndTime "9:16:03 PDT"]
[Termination "hansen won by resignation"]

1. d4 {[%clk 0:03:00.9]} 1... Nf6 {[%clk 0:02:38.1]} 2. c4 {[%clk 0:03:00.5]}
2... e6 {[%clk 0:02:38.3]} 3. Nc3 {[%clk 0:03:00.4]} 3... Bb4 {[%clk 0:02:38.4]}
4. a3 {[%clk 0:02:57.6]} 4... Bxc3+ {[%clk 0:02:21.6]} 5. bxc3 {[%clk
0:02:58.5]} 5... O-O {[%clk 0:02:13]} 6. e3 {[%clk 0:02:58.8]} 6... d6 {[%clk
0:02:01.8]} 7. Bd3 {[%clk 0:02:57]} 7... e5 {[%clk 0:02:02]} 8. Ne2 {[%clk
0:02:42.6]} 8... e4 {[%clk 0:01:54.6]} 9. Bc2 {[%clk 0:02:42.4]} 9... Bg4 {[%clk
0:01:46.8]} 10. h3 {[%clk 0:02:40]} 10... Bxe2 {[%clk 0:01:47.5]} 11. Qxe2
{[%clk 0:02:39.4]} 11... Re8 {[%clk 0:01:47.7]} 12. O-O {[%clk 0:02:37.2]} 12...
Qe7 {[%clk 0:01:37.3]} 13. f3 {[%clk 0:02:28.9]} 13... c5 {[%clk 0:01:25.3]} 14.
Bd2 {[%clk 0:02:06.6]} 14... Nbd7 {[%clk 0:01:14.4]} 15. Rae1 {[%clk 0:01:31.2]}
15... Qe6 {[%clk 0:01:07.5]} 16. d5 {[%clk 0:01:00.1]} 16... exf3 {[%clk
0:00:42.9]} 17. Qxf3 {[%clk 0:00:37.9]} 17... Qe7 {[%clk 0:00:40.7]} 18. Qf5
{[%clk 0:00:26.8]} 18... g6 {[%clk 0:00:22.8]} 19. Qf3 {[%clk 0:00:15.9]} 19...
Nh5 {[%clk 0:00:20.7]} 20. g4 {[%clk 0:00:13.9]} 20... Ne5 {[%clk 0:00:21.1]}
21. Qf2 {[%clk 0:00:10.7]} 21... Ng7 {[%clk 0:00:20.8]} 22. e4 {[%clk 0:00:08]}
22... f6 {[%clk 0:00:14.7]} 23. Bh6 {[%clk 0:00:08.3]} 23... Rf8 {[%clk
0:00:11.5]} 24. Qe2 {[%clk 0:00:07.6]} 24... Rf7 {[%clk 0:00:07.7]} 25. Rf2
{[%clk 0:00:07.8]} 25... Re8 {[%clk 0:00:07.8]} 26. Ref1 {[%clk 0:00:08.5]}
26... a6 {[%clk 0:00:07.7]} 27. Kg2 {[%clk 0:00:08]} 27... Qd8 {[%clk
0:00:04.3]} 28. Ba4 {[%clk 0:00:08.3]} 28... Ref8 {[%clk 0:00:03.8]} 29. h4
{[%clk 0:00:07.7]} 29... Qe7 {[%clk 0:00:02.9]} 30. Kg3 {[%clk 0:00:07.3]} 30...
Nxc4 {[%clk 0:00:02.3]} 31. Qxc4 {[%clk 0:00:06.6]} 31... b5 {[%clk 0:00:03]}
32. Bxb5 {[%clk 0:00:06.5]} 32... axb5 {[%clk 0:00:03.9]} 33. Qe2 {[%clk
0:00:05.9]} 33... Qe5+ {[%clk 0:00:03.6]} 34. Bf4 {[%clk 0:00:06]} 34... Qe7
{[%clk 0:00:03.7]} 35. Kg2 {[%clk 0:00:05.7]} 35... Re8 {[%clk 0:00:02.4]} 36.
Re1 {[%clk 0:00:06.1]} 36... Qd7 {[%clk 0:00:02.8]} 37. Qf3 {[%clk 0:00:05.3]}
37... h5 {[%clk 0:00:03.3]} 38. gxh5 {[%clk 0:00:05]} 38... Nxh5 {[%clk
0:00:04.1]} 39. Bh2 {[%clk 0:00:05.1]} 39... Kh7 {[%clk 0:00:04.4]} 40. Rfe2
{[%clk 0:00:05.6]} 40... Ree7 {[%clk 0:00:04.7]} 41. Re3 {[%clk 0:00:05.4]}
41... Re8 {[%clk 0:00:05.2]} 42. R3e2 {[%clk 0:00:05.3]} 42... Ref8 {[%clk
0:00:05.7]} 43. Re3 {[%clk 0:00:04.9]} 43... Ra8 {[%clk 0:00:06.4]} 44. c4
{[%clk 0:00:04]} 44... bxc4 {[%clk 0:00:06.7]} 45. Rc3 {[%clk 0:00:04.3]} 45...
Rb8 {[%clk 0:00:06.8]} 46. Rxc4 {[%clk 0:00:04.2]} 46... Rb2+ {[%clk 0:00:07.4]}
47. Re2 {[%clk 0:00:04.1]} 47... Rxe2+ {[%clk 0:00:07.8]} 48. Qxe2 {[%clk
0:00:05]} 48... Re7 {[%clk 0:00:08.4]} 49. Rc2 {[%clk 0:00:04.8]} 49... f5
{[%clk 0:00:08.7]} 50. Rc4 {[%clk 0:00:04.8]} 50... Kg7 {[%clk 0:00:08.7]} 51.
a4 {[%clk 0:00:03.8]} 51... Kh7 {[%clk 0:00:08.3]} 52. e5 {[%clk 0:00:04.3]}
52... dxe5 {[%clk 0:00:08.4]} 53. Rxc5 {[%clk 0:00:04.8]} 53... f4 {[%clk
0:00:08.5]} 54. Qe4 {[%clk 0:00:04]} 54... Nf6 {[%clk 0:00:08.1]} 55. Qe2 {[%clk
0:00:03.5]} 55... Qf5 {[%clk 0:00:07.8]} 56. Rc6 {[%clk 0:00:03.5]} 56... Nxd5
{[%clk 0:00:07.6]} 57. h5 {[%clk 0:00:03.6]} 57... Ne3+ {[%clk 0:00:08.5]} 58.
Kh1 {[%clk 0:00:03.3]} 58... Qe4+ {[%clk 0:00:08.9]} 59. Kg1 {[%clk 0:00:02.1]}
59... Qxc6 {[%clk 0:00:09.4]} 60. hxg6+ {[%clk 0:00:02.6]} 60... Qxg6+ {[%clk
0:00:10.3]} 61. Kh1 {[%clk 0:00:02.9]} 61... Qe4+ {[%clk 0:00:10.5]} 62. Kg1
{[%clk 0:00:03.1]} 62... Rg7+ {[%clk 0:00:11.2]} 0-1

[Event "Early-Titled-Tuesday-Blitz-October-24-2023"]
[Site "Chess.com"]
[Date "2023.10.24"]
[Round "7"]
[White "DefiantChair"]
[Black "Cayse"]
[Result "0-1"]
[WhiteElo "2672"]
[BlackElo "2884"]
[TimeControl "180+1"]
[EndTime "9:16:10 PDT"]
[Termination "Cayse won by checkmate"]

1. e4 {[%clk 0:02:56.1]} 1... e5 {[%clk 0:02:59.9]} 2. Nf3 {[%clk 0:02:56.1]}
2... Nc6 {[%clk 0:03:00.2]} 3. Bb5 {[%clk 0:02:56.3]} 3... a6 {[%clk 0:03:00.3]}
4. Ba4 {[%clk 0:02:56.7]} 4... Nf6 {[%clk 0:03:00.5]} 5. O-O {[%clk 0:02:56.7]}
5... Be7 {[%clk 0:03:00.7]} 6. Re1 {[%clk 0:02:57.2]} 6... b5 {[%clk 0:03:00.9]}
7. Bb3 {[%clk 0:02:57.7]} 7... O-O {[%clk 0:03:01.6]} 8. c3 {[%clk 0:02:52.7]}
8... d5 {[%clk 0:03:01.3]} 9. exd5 {[%clk 0:02:53.6]} 9... Nxd5 {[%clk
0:03:01.8]} 10. Nxe5 {[%clk 0:02:54.3]} 10... Nxe5 {[%clk 0:03:02.4]} 11. Rxe5
{[%clk 0:02:55.2]} 11... c6 {[%clk 0:03:03.1]} 12. d3 {[%clk 0:02:54]} 12... Bd6
{[%clk 0:03:02.8]} 13. Re1 {[%clk 0:02:52.5]} 13... Bf5 {[%clk 0:03:02.7]} 14.
Nd2 {[%clk 0:02:49.7]} 14... Bxd3 {[%clk 0:02:56.5]} 15. Ne4 {[%clk 0:02:47.9]}
15... Bxh2+ {[%clk 0:02:26.6]} 16. Kxh2 {[%clk 0:02:45]} 16... Qh4+ {[%clk
0:02:27]} 17. Kg1 {[%clk 0:02:44.9]} 17... Bxe4 {[%clk 0:02:27.6]} 18. Qd4
{[%clk 0:02:10.9]} 18... Rae8 {[%clk 0:02:26.7]} 19. Bxd5 {[%clk 0:02:02.2]}
19... cxd5 {[%clk 0:02:22.7]} 20. Re3 {[%clk 0:01:49.6]} 20... f5 {[%clk
0:01:39.6]} 21. Rg3 {[%clk 0:01:35.2]} 21... Qf6 {[%clk 0:01:24.3]} 22. Bf4
{[%clk 0:00:56.6]} 22... h6 {[%clk 0:01:13.5]} 23. Rd1 {[%clk 0:00:45.1]} 23...
g5 {[%clk 0:01:10.5]} 24. f3 {[%clk 0:00:20.7]} 24... Qxd4+ {[%clk 0:00:58.2]}
25. Rxd4 {[%clk 0:00:21.6]} 25... Bb1 {[%clk 0:00:58.5]} 26. Rxd5 {[%clk
0:00:21.6]} 26... Bxa2 {[%clk 0:00:57.4]} 27. Rd7 {[%clk 0:00:20]} 27... Be6
{[%clk 0:00:49.2]} 28. Ra7 {[%clk 0:00:19.9]} 28... Ra8 {[%clk 0:00:25.9]} 29.
Rb7 {[%clk 0:00:20.2]} 29... Bc8 {[%clk 0:00:17.2]} 30. Rc7 {[%clk 0:00:20.4]}
30... Rf7 {[%clk 0:00:17.2]} 31. Rc6 {[%clk 0:00:20.4]} 31... Kh7 {[%clk
0:00:16.8]} 32. Bxg5 {[%clk 0:00:12.8]} 32... hxg5 {[%clk 0:00:16.4]} 33. Rxg5
{[%clk 0:00:13.7]} 33... Bd7 {[%clk 0:00:15.2]} 34. Rd6 {[%clk 0:00:13]} 34...
Rg8 {[%clk 0:00:13.8]} 35. Rh5+ {[%clk 0:00:12.4]} 35... Kg7 {[%clk 0:00:14.1]}
36. Rxa6 {[%clk 0:00:12.7]} 36... Re8 {[%clk 0:00:14.4]} 37. Rg5+ {[%clk
0:00:11.8]} 37... Kf8 {[%clk 0:00:14.3]} 38. Kf2 {[%clk 0:00:12.4]} 38... Re6
{[%clk 0:00:12.9]} 39. Ra8+ {[%clk 0:00:11.4]} 39... Ke7 {[%clk 0:00:13.3]} 40.
Rgg8 {[%clk 0:00:11.2]} 40... Rd6 {[%clk 0:00:13.6]} 41. Ke3 {[%clk 0:00:10.5]}
41... f4+ {[%clk 0:00:13.8]} 42. Ke2 {[%clk 0:00:11]} 42... Kf6 {[%clk 0:00:14]}
43. Rh8 {[%clk 0:00:03.6]} 43... Re7+ {[%clk 0:00:13.8]} 44. Kf2 {[%clk
0:00:04.5]} 44... Rd2+ {[%clk 0:00:13.9]} 45. Kg1 {[%clk 0:00:05.3]} 45... Rxb2
{[%clk 0:00:14]} 46. Rab8 {[%clk 0:00:03.9]} 46... Bf5 {[%clk 0:00:13.2]} 47.
Kh2 {[%clk 0:00:04.2]} 47... Rb1 {[%clk 0:00:12]} 48. Rhf8+ {[%clk 0:00:04.3]}
48... Kg7 {[%clk 0:00:11.9]} 49. Rg8+ {[%clk 0:00:04.8]} 49... Kf6 {[%clk
0:00:11.9]} 50. Rbf8+ {[%clk 0:00:05.2]} 50... Ke6 {[%clk 0:00:11.2]} 51. Rh8
{[%clk 0:00:05.8]} 51... Rf7 {[%clk 0:00:11]} 52. Rh6+ {[%clk 0:00:05.8]} 52...
Ke7 {[%clk 0:00:10.6]} 53. Rb8 {[%clk 0:00:06.2]} 53... Bd7 {[%clk 0:00:10.4]}
54. Rb7 {[%clk 0:00:06.3]} 54... Kd8 {[%clk 0:00:09.8]} 55. Rh8+ {[%clk
0:00:06.2]} 55... Ke7 {[%clk 0:00:10.2]} 56. Rh6 {[%clk 0:00:06.8]} 56... Rg7
{[%clk 0:00:10.5]} 57. Rh4 {[%clk 0:00:04.4]} 57... Rb2 {[%clk 0:00:10.5]} 58.
Rxf4 {[%clk 0:00:04.5]} 58... Rbxg2+ {[%clk 0:00:10.5]} 59. Kh1 {[%clk
0:00:05.1]} 59... Rg1+ {[%clk 0:00:11.2]} 60. Kh2 {[%clk 0:00:05.7]} 60... R7g2#
{[%clk 0:00:11.7]} 0-1

[Event "Early-Titled-Tuesday-Blitz-October-24-2023"]
[Site "Chess.com"]
[Date "2023.10.24"]
[Round "7"]
[White "milovichalex"]
[Black "dennisodessa"]
[Result "1-0"]
[WhiteElo "2326"]
[BlackElo "2538"]
[TimeControl "180+1"]
[EndTime "9:16:11 PDT"]
[Termination "milovichalex won by resignation"]

1. e4 {[%clk 0:03:00.9]} 1... e6 {[%clk 0:03:00.9]} 2. Nf3 {[%clk 0:02:59.9]}
2... d5 {[%clk 0:03:01.3]} 3. e5 {[%clk 0:03:00.4]} 3... c5 {[%clk 0:03:01.2]}
4. b4 {[%clk 0:03:00.5]} 4... c4 {[%clk 0:03:01.8]} 5. a3 {[%clk 0:03:00]} 5...
a5 {[%clk 0:03:01]} 6. b5 {[%clk 0:02:59.4]} 6... Nd7 {[%clk 0:03:01.5]} 7. d3
{[%clk 0:02:57.2]} 7... cxd3 {[%clk 0:03:01.5]} 8. cxd3 {[%clk 0:02:57.4]} 8...
Nc5 {[%clk 0:03:01.6]} 9. d4 {[%clk 0:02:52.8]} 9... Ne4 {[%clk 0:03:01.9]} 10.
Nbd2 {[%clk 0:02:52.5]} 10... Nh6 {[%clk 0:02:55.1]} 11. Nxe4 {[%clk 0:02:46.6]}
11... dxe4 {[%clk 0:02:56]} 12. Bg5 {[%clk 0:02:45.4]} 12... Qd5 {[%clk
0:02:50.2]} 13. Nd2 {[%clk 0:02:08.7]} 13... Qxd4 {[%clk 0:02:48.6]} 14. Nc4
{[%clk 0:02:06.6]} 14... Bc5 {[%clk 0:02:05.1]} 15. Qxd4 {[%clk 0:01:51.3]}
15... Bxd4 {[%clk 0:02:06]} 16. O-O-O {[%clk 0:01:51.1]} 16... Bd7 {[%clk
0:01:40.2]} 17. Rxd4 {[%clk 0:01:47.2]} 17... Nf5 {[%clk 0:01:36.9]} 18. Nd6+
{[%clk 0:01:24.1]} 18... Nxd6 {[%clk 0:01:34.5]} 19. Rxd6 {[%clk 0:01:22.4]}
19... Rc8+ {[%clk 0:01:33.4]} 20. Kb2 {[%clk 0:01:21.2]} 20... Rc5 {[%clk
0:01:34.3]} 21. Be2 {[%clk 0:00:49.6]} 21... Rxe5 {[%clk 0:01:17.6]} 22. Bf4
{[%clk 0:00:20.2]} 22... Rf5 {[%clk 0:01:17.2]} 23. Be3 {[%clk 0:00:19.4]} 23...
Bxb5 {[%clk 0:01:16.8]} 24. Rhd1 {[%clk 0:00:12.9]} 24... O-O {[%clk 0:01:12.4]}
25. Bg4 {[%clk 0:00:13.1]} 25... Re5 {[%clk 0:00:58.6]} 26. Rd8 {[%clk 0:00:13]}
26... h5 {[%clk 0:00:49.9]} 27. Rxf8+ {[%clk 0:00:12.8]} 27... Kxf8 {[%clk
0:00:50.8]} 28. Bh3 {[%clk 0:00:09.5]} 28... Bd3 {[%clk 0:00:48.7]} 29. Rc1
{[%clk 0:00:09.3]} 29... Rb5+ {[%clk 0:00:48.8]} 30. Ka1 {[%clk 0:00:08.7]}
30... g5 {[%clk 0:00:41.4]} 31. g3 {[%clk 0:00:09]} 31... Kg7 {[%clk 0:00:26]}
32. Bf1 {[%clk 0:00:09.1]} 32... Rb3 {[%clk 0:00:25.3]} 33. Ka2 {[%clk
0:00:08.8]} 33... a4 {[%clk 0:00:23.7]} 34. Bxd3 {[%clk 0:00:08.2]} 34... exd3
{[%clk 0:00:24.5]} 35. Rd1 {[%clk 0:00:07.9]} 35... Kg6 {[%clk 0:00:24.3]} 36.
Rd2 {[%clk 0:00:08.1]} 36... f5 {[%clk 0:00:23.6]} 37. Rb2 {[%clk 0:00:07]}
37... Rc3 {[%clk 0:00:19.5]} 38. Rxb7 {[%clk 0:00:07]} 38... e5 {[%clk
0:00:19.7]} 39. Rb2 {[%clk 0:00:06.2]} 39... f4 {[%clk 0:00:19.1]} 40. gxf4
{[%clk 0:00:06.5]} 40... gxf4 {[%clk 0:00:20]} 41. Bd2 {[%clk 0:00:07]} 41...
Rc4 {[%clk 0:00:18.8]} 42. Kb1 {[%clk 0:00:07]} 42... Kf5 {[%clk 0:00:18]} 43.
Rb4 {[%clk 0:00:06.8]} 43... Rc2 {[%clk 0:00:18.1]} 44. Rb2 {[%clk 0:00:05.2]}
44... Rc4 {[%clk 0:00:18.4]} 45. Rb4 {[%clk 0:00:05.2]} 45... Rc2 {[%clk
0:00:18.7]} 46. Rb2 {[%clk 0:00:05.5]} 46... Rc6 {[%clk 0:00:17.4]} 47. Bb4
{[%clk 0:00:05.4]} 47... e4 {[%clk 0:00:16.3]} 48. Bd2 {[%clk 0:00:05]} 48...
Kg4 {[%clk 0:00:14.7]} 49. Rb5 {[%clk 0:00:04.2]} 49... Rc2 {[%clk 0:00:13.9]}
50. Rb2 {[%clk 0:00:04.1]} 50... Rxb2+ {[%clk 0:00:11.7]} 51. Kxb2 {[%clk
0:00:04.4]} 51... e3 {[%clk 0:00:12.6]} 52. fxe3 {[%clk 0:00:04.4]} 52... fxe3
{[%clk 0:00:13.5]} 53. Bxe3 {[%clk 0:00:05.3]} 53... Kf3 {[%clk 0:00:11]} 54.
Bd2 {[%clk 0:00:05.9]} 54... Kg2 {[%clk 0:00:11.3]} 55. Bf4 {[%clk 0:00:06]}
55... Kf3 {[%clk 0:00:08.7]} 56. Bd2 {[%clk 0:00:05.4]} 56... Kg2 {[%clk
0:00:09.2]} 57. Bf4 {[%clk 0:00:05.3]} 57... Kf3 {[%clk 0:00:09.3]} 58. Bg5
{[%clk 0:00:05.9]} 58... Kg4 {[%clk 0:00:09]} 59. h4 {[%clk 0:00:06.3]} 1-0